[Event "44th Chess Olympiad Open 2022"]
[Site "Chennai"]
[Date "2022.08.03"]
[Round "6.21"]
[White "Valderrama Quiceno, Esteban Alb"]
[Black "Mekhitarian, Krikor Sevag"]
[Result "0-1"]
[WhiteElo "2436"]
[BlackElo "2542"]
[Annotator "TA"]
[PlyCount "80"]
[EventDate "2022.??.??"]
[TimeControl "60"]

{[%evp 12,80,9,-24,-25,-32,-31,-66,-37,-70,-10,-52,-50,-50,-39,-74,-70,-70,-59,
-87,-79,-108,-110,-94,-137,-126,-57,-58,-49,-43,-39,-104,-85,-124,-128,-134,
-119,-220,-221,-215,-194,-197,-198,-227,-212,-200,-208,-229,-242,-229,-250,
-256,-242,-321,-312,-304,-318,-302,-315,-306,-311,-305,-299,-345,-318,-1058,
-1033,-1182,-1075,-1972,-1301]} 1. Nf3 {[%emt 0:00:26]} d5 {[%emt 0:00:04]} 2.
g3 {[%emt 0:00:39]} Bg4 {[%emt 0:00:08]} 3. Bg2 {[%emt 0:00:26]} Nd7 {[%emt 0:
00:00]} 4. O-O {[%emt 0:04:23]} e6 {[%emt 0:00:02]} 5. d4 {[%emt 0:05:13]} Ngf6
{[%emt 0:00:35]} 6. c4 {[%emt 0:01:28]} c6 {[%emt 0:03:15]} 7. Nc3 {[%emt 0:00:
00]} dxc4 {[%emt 0:12:13] D11: Slav Defence: 3 Nf3 sidelines and 3...Nf6 4 e3
Bg4.} 8. a4 {[%emt 0:05:56]} a5 {[%emt 0:05:36]} 9. e4 {[%emt 0:02:23]} e5 {
[%emt 0:03:23] Black is slightly better.} 10. Be3 {[%emt 0:15:53]} Bd6 {
[%emt 0:06:33] [#]} (10... exd4 $15 11. Bxd4 Nc5) 11. Qe2 $146 {[%emt 0:02:50]}
({Predecessor:} 11. h3 Bxf3 12. Qxf3 O-O 13. Rad1 Qe7 14. Qe2 exd4 15. Bxd4 Bc5
16. Qxc4 Bxd4 17. Qxd4 {1-0 (38) Matnadze,A (2412)-Gonzalez Garcia,M (2139)
Barcelona 2020}) 11... exd4 {[%emt 0:05:50]} 12. Bxd4 {[%emt 0:00:59] [#]} Ne5
$1 {[%emt 0:00:45]} 13. h3 {[%emt 0:03:08]} (13. Qe3 Bxf3) 13... Bxf3 {[%emt 0:
00:00]} ({Don't play} 13... Nxf3+ $6 14. Bxf3 Bb4 15. Rfd1 Bxh3 16. Na2 $11)
14. Bxf3 {[%emt 0:00:01]} Qe7 {[%emt 0:13:38]} 15. Bg2 {[%emt 0:02:59]} O-O {
[%emt 0:03:19]} 16. Kh1 {[%emt 0:06:39]} Nd3 {[%emt 0:06:12]} 17. f4 {[%emt 0:
00:00]} Bc5 {[%emt 0:01:23]} 18. Bxf6 {[%emt 0:02:00]} Qxf6 {[%emt 0:05:20]} (
18... gxf6 $17 19. Rab1 Rad8) 19. e5 $15 {[%emt 0:00:08]} Qe7 {[%emt 0:00:11]}
20. Ne4 {[%emt 0:03:11]} Rad8 $36 {[%emt 0:02:51] Black is more active.} 21.
Rad1 {[%emt 0:04:08] Black converts the advantage convincingly.} (21. b3 $1 $15
) 21... f5 {[%emt 0:07:32]} 22. exf6 {[%emt 0:06:48]} gxf6 {[%emt 0:00:04]} 23.
Qc2 {[%emt 0:00:41]} Rd4 {[%emt 0:00:34]} 24. Nc3 {[%emt 0:00:00]} (24. b3 $17)
24... Rfd8 $19 {[%emt 0:03:08]} 25. Kh2 {[%emt 0:00:32]} Kg7 {[%emt 0:04:25]}
26. Qb1 {[%emt 0:00:37]} Bb4 {[%emt 0:03:14]} 27. Rd2 {[%emt 0:02:23]} f5 {
[%emt 0:00:49]} 28. Re2 {[%emt 0:00:24]} Qf6 {[%emt 0:00:00]} 29. Nd1 {[%emt 0:
00:20]} R4d7 {[%emt 0:01:35]} 30. Qc2 {[%emt 0:06:50]} b5 {[%emt 0:00:31]} 31.
Ne3 {[%emt 0:04:53]} Bc5 {[%emt 0:00:42] Strongly threatening ...Bxe3.} 32.
Nxc4 {[%emt 0:01:54] [#] And now Ne5 would win.} Nb4 {[%emt 0:02:03]} 33. Qc1 {
[%emt 0:00:04] Hoping for Ne5.} bxc4 {[%emt 0:00:06]} 34. Qxc4 {[%emt 0:00:02]}
Re7 {[%emt 0:00:41]} 35. Rfe1 {[%emt 0:01:29]} Rxe2 {[%emt 0:00:21]} 36. Rxe2 {
[%emt 0:00:01]} Qd4 {[%emt 0:00:59][%csl Gc5][%cal Rd4g1]} 37. Qc1 {[%emt 0:00:
11] Prevents Qg1+.} Qd1 {[%emt 0:02:04]} 38. Qxc5 {[%emt 0:03:29]} (38. Qxd1
Rxd1 39. h4) 38... Qxe2 {[%emt 0:00:05] Active counter play! Black is clearly
winning.} 39. Qxf5 {[%emt 0:00:04]} Rd5 {[%emt 0:02:19]} 40. Qc8 {[%emt 0:00:
39]} Rd2 {[%emt 0:00:27] Weighted Error Value: White=0.49/Black=0.08 (flawless)
} 0-1

[Event "44th Chess Olympiad Open 2022"]
[Site "Chennai"]
[Date "2022.08.03"]
[Round "6.22"]
[White "Bjerre, Jonas Buhl"]
[Black "Hossain, Enamul"]
[Result "1-0"]
[WhiteElo "2608"]
[BlackElo "2377"]
[Annotator "TA"]
[PlyCount "93"]
[EventDate "2022.??.??"]
[TimeControl "60"]

{[%evp 20,93,22,18,72,66,94,78,83,72,73,48,47,42,39,41,91,97,106,32,37,28,37,
13,4,0,0,0,0,-274,-293,-269,-279,-249,-74,-91,-13,-13,-18,-31,0,0,14,10,56,0,0,
0,43,47,44,47,34,41,124,110,221,29,279,28,231,223,732,731,719,711,1988,1948,
1552,1551,29988,29972,29988,29989,29989,29990]} 1. Nf3 {[%emt 0:00:04]} d5 {
[%emt 0:01:08]} 2. g3 {[%emt 0:00:13]} g6 {[%emt 0:01:28]} 3. Bg2 {[%emt 0:00:
00]} Bg7 {[%emt 0:00:10]} 4. d4 {[%emt 0:00:15]} Nf6 {[%emt 0:00:54]} 5. O-O {
[%emt 0:01:55]} O-O {[%emt 0:00:14]} 6. c4 {[%emt 0:00:11]} Nc6 {[%emt 0:03:52]
[%cal Yb8c6,Yc6a5,Ya5c4]} 7. cxd5 {[%emt 0:03:47]} Nxd5 {[%emt 0:00:00]} 8. e4
{[%emt 0:00:08]} Nb6 {[%emt 0:00:06]} 9. d5 {[%emt 0:00:41]} Na5 {[%emt 0:00:
15]} 10. Qe1 {[%emt 0:03:31]} Nac4 {[%emt 0:00:08]} 11. Nc3 {[%emt 0:00:45]} c6
{[%emt 0:01:24] D74: Fianchetto Grünfeld: Main Line (5 Nf3 0-0 6 cxd5 Nxd5 7
0-0).} (11... e6 $11 {remains equal.}) 12. b3 $16 {[%emt 0:00:00]} Ne5 {
[%emt 0:03:48]} 13. Nxe5 {[%emt 0:07:15]} Bxe5 {[%emt 0:00:11] White is better.
} 14. Bh6 {[%emt 0:05:47]} Re8 {[%emt 0:04:37]} 15. dxc6 {[%emt 0:06:01]} bxc6
{[%emt 0:05:26]} 16. Rd1 {[%emt 0:03:28]} Qc7 {[%emt 0:00:00] [#]} 17. f4 $146
{[%emt 0:02:37]} ({Predecessor:} 17. Qe3 Ba6 18. Rfe1 Rad8 19. Bf1 Bxf1 20.
Kxf1 Rxd1 21. Rxd1 Rd8 22. Rd3 Rxd3 23. Qxd3 {0-1 (44) Horton, A (2375)-Turner,
M (2509) Chess.com INT 2021}) 17... Bg7 {[%emt 0:01:13]} (17... Bd6 $14) 18.
Bxg7 {[%emt 0:01:21]} Kxg7 {[%emt 0:00:03]} 19. e5 {[%emt 0:04:57]} (19. Rc1
$16) 19... Be6 $14 {[%emt 0:05:50]} 20. Qf2 {[%emt 0:06:51]} Red8 {[%emt 0:05:
26]} 21. Qc5 {[%emt 0:03:12]} Rxd1 $1 {[%emt 0:04:54]} 22. Rxd1 {[%emt 0:01:28]
} Rd8 {[%emt 0:10:02]} 23. Rc1 {[%emt 0:04:15]} (23. Bxc6 $2 Rxd1+ 24. Nxd1 Bd5
$1 $19) (23. Qxc6 $2 Qxc6 24. Bxc6 Rc8 $19) 23... Rd2 {[%emt 0:02:18]} 24. Qxc6
$2 {[%emt 0:04:25]} (24. Bxc6 $11 Bf5 25. Nb5) 24... Qd8 $1 $19 {[%emt 0:00:54]
} 25. Kh1 {[%emt 0:10:09]} Qd4 {[%emt 0:11:19]} 26. Qf3 {[%emt 0:03:43] [#]} h5
$2 {[%emt 0:05:00]} (26... Nd5 $1 $19 {[%cal Rd5c3] is more deadly.} 27. Nxd5
Rxg2) 27. h3 $17 {[%emt 0:02:29]} Rd3 {[%emt 0:03:55]} (27... h4 $17 {aiming
for ...hxg3.} 28. gxh4 Rd3) 28. Qe4 $11 {[%emt 0:02:30]} Qd7 {[%emt 0:01:17]
Black has compensation.} 29. Kh2 {[%emt 0:01:31]} Rd2 {[%emt 0:00:49] And now .
..Bxh3 would win.} 30. Rc2 {[%emt 0:01:14][%cal Yc1c2,Yc2e2,Ye2d2]} Rd3 {
[%emt 0:15:36]} 31. Qe1 {[%emt 0:01:58]} Bf5 {[%emt 0:03:54]} (31... Nd5 $11
32. Nxd5 Bxd5) 32. Ne4 {[%emt 0:04:52]} ({White should try} 32. Bf1 $14) 32...
Qd4 {[%emt 0:00:53]} 33. Re2 {[%emt 0:00:19]} e6 {[%emt 0:03:36]} 34. Nf2 {
[%emt 0:01:15]} Rc3 {[%emt 0:00:02][%cal Yh5h4]} 35. Qd2 {[%emt 0:02:17]} Qc5 {
[%emt 0:00:48]} 36. Qd6 {[%emt 0:01:20]} Qb5 {[%emt 0:00:57]} (36... Nd5 $14)
37. Rd2 $36 {[%emt 0:00:00] Strongly threatening g4. White is really pushing.}
Rc8 {[%emt 0:03:59] [#]} (37... Qc5 $16 {might work better.} 38. g4 (38. Qd8
Nd5 $11) 38... hxg4 39. hxg4 (39. Nxg4 Bxg4 40. Qxc5 Rxc5 $14) 39... Qe3 40.
gxf5 Qxf4+ 41. Kg1 Rc1+ 42. Rd1 gxf5) 38. Qe7 $2 {[%emt 0:01:59]} ({Only move:
} 38. g4 $1 $18 {[%cal Rg4f5]} hxg4 39. hxg4) 38... Nd5 $2 {[%emt 0:00:48]} (
38... Qa5 $1 $11 {and Black is okay.} 39. Qf6+ (39. b4 Qa3 $14) 39... Kg8 40.
Rd8+ Rxd8 41. Qxd8+ Kg7) 39. Qxa7 $2 {[%emt 0:00:47]} (39. Bxd5 $18 exd5 40. g4
(40. Qxa7 Rc1 $11) 40... hxg4 41. hxg4) 39... Rc1 $2 {[%emt 0:00:34]} (39...
Qb4 $1 $11 {and Black stays safe.} 40. Rxd5 exd5 41. Bxd5 Rc2) 40. Qd4 {
[%emt 0:00:56] Threatens to win with g4.} Nb4 $2 {[%emt 0:00:40]} (40... h4 41.
gxh4 (41. Bxd5 Qf1 $11) 41... Qb4 42. Bxd5 Qxd4 43. Rxd4 exd5) 41. g4 $18 {
[%emt 0:05:28]} ({Less strong is} 41. Qd8 Nd5 $16) 41... hxg4 {[%emt 0:00:31]}
42. hxg4 {[%emt 0:00:00]} ({Weaker is} 42. Qd8 Nd5 43. Rxd5 (43. Bxd5 exd5 44.
Kg3 Rg1+ 45. Kh2 Qf1 $11) (43. Nxg4 Qb4 $15) 43... exd5 $11) 42... Bb1 {
[%emt 0:00:08]} 43. Qd8 {[%emt 0:03:25] Qf6+ would kill now.} Nd5 {[%emt 0:04:
14] Inhibits Qf6+.} 44. Bxd5 {[%emt 0:01:14]} Qf1 {[%emt 0:01:30]} 45. Bf3 {
[%emt 0:03:08] White mates.} Qg1+ {[%emt 0:02:06]} 46. Kh3 {[%emt 0:00:04]}
Qf1+ {[%emt 0:00:19]} 47. Bg2 {[%emt 0:00:33] White used his chance. Weighted
Error Value: White=0.44/ Black=0.59} 1-0

[Event "44th Chess Olympiad Open 2022"]
[Site "Chennai"]
[Date "2022.08.03"]
[Round "6.22"]
[White "Thybo, Jesper Sondergaard"]
[Black "Zia, Tahsin Tajwar"]
[Result "1-0"]
[WhiteElo "2520"]
[BlackElo "2307"]
[Annotator "TA"]
[PlyCount "91"]
[EventDate "2022.??.??"]
[TimeControl "60"]

{[%evp 17,91,13,13,16,31,0,2,5,33,35,31,31,31,29,29,16,72,76,70,72,65,56,101,
101,87,95,99,98,100,111,116,83,139,135,141,126,113,113,128,118,112,114,153,149,
148,126,137,138,183,179,175,175,181,184,185,191,533,519,498,433,752,695,1142,
1129,1814,1479,884,869,1097,1090,1097,1075,29969,29970,862,793]} 1. d4 {
[%emt 0:00:06]} d5 {[%emt 0:00:18]} 2. c4 {[%emt 0:00:09]} e6 {[%emt 0:00:06]}
3. Nf3 {[%emt 0:00:19]} Nf6 {[%emt 0:00:24]} 4. g3 {[%emt 0:00:21]} Bb4+ {
[%emt 0:01:24]} 5. Bd2 {[%emt 0:00:23]} a5 {[%emt 0:00:30]} 6. Bg2 {[%emt 0:00:
00]} O-O {[%emt 0:00:41]} 7. a3 {[%emt 0:00:10]} Be7 {[%emt 0:02:49]} 8. Qc2 {
[%emt 0:00:11]} c6 {[%emt 0:05:10]} 9. O-O {[%emt 0:02:56]} Nbd7 {[%emt 0:00:
00]} 10. Bf4 {[%emt 0:05:10] E11: Bogo-Indian.} Ne4 {[%emt 0:05:03]} 11. h4 {
[%emt 0:07:37]} (11. Nc3 $5 {[%cal Rc3e4]}) 11... h6 {[%emt 0:01:54] [#]} 12.
Nc3 $146 {[%emt 0:07:28] The position is equal.} ({Predecessor:} 12. Nbd2 g5
13. Be3 Nd6 14. Bh3 f5 15. Ne5 Qe8 16. c5 Ne4 17. Nxe4 dxe4 18. hxg5 hxg5 19.
Nxd7 Bxd7 20. f4 Qg6 21. Kf2 Rf7 22. Rh1 Raf8 {½-½ (22) Stukan,M (2342)
-Petrov,N (2570) Novi Sad 2021}) 12... f5 {[%emt 0:14:28]} (12... g5 $5 {
[%cal Re4c3]} 13. Bc1 (13. Nxe4 dxe4 14. Nxg5 hxg5 $17) 13... f5 $11) 13. Nxe4
{[%emt 0:01:13]} fxe4 {[%emt 0:02:35]} 14. Ne5 {[%emt 0:00:21]} Nxe5 {[%emt 0:
00:00]} 15. Bxe5 {[%emt 0:02:11]} (15. dxe5 {[#]} Bxh4 $1 16. Be3 Bg5 $15)
15... Bd6 {[%emt 0:10:47]} 16. f3 {[%emt 0:16:12]} Qc7 {[%emt 0:35:42]} (16...
Bxe5 $11 17. dxe5 exf3 18. exf3 b5) 17. Bxd6 $16 {[%emt 0:08:10]} Qxd6 {
[%emt 0:00:07]} 18. Kh2 {[%emt 0:00:11]} exf3 {[%emt 0:03:01]} 19. exf3 {
[%emt 0:00:22]} e5 {[%emt 0:02:04] White stays focused until the end.} 20. dxe5
{[%emt 0:01:55]} Qxe5 {[%emt 0:00:11]} 21. f4 {[%emt 0:00:24]} Qf6 {[%emt 0:00:
00]} 22. cxd5 {[%emt 0:03:05]} cxd5 {[%emt 0:00:40]} 23. Bxd5+ {[%emt 0:04:43]}
Kh8 {[%emt 0:00:13]} 24. Qc3 {[%emt 0:01:48] White is more active.} Bf5 {
[%emt 0:02:52]} ({Black should play} 24... Rd8 25. Qxf6 gxf6) 25. Qxf6 {
[%emt 0:04:34]} ({But not} 25. Bxb7 $6 Rab8 26. Qxf6 Rxf6 $11) 25... Rxf6 {
[%emt 0:00:05]} 26. Rf2 {[%emt 0:00:19]} ({Much weaker is} 26. Bxb7 $6 Rb8 27.
Bg2 Rxb2 $11) 26... Rd8 {[%emt 0:01:12]} 27. Bf3 {[%emt 0:03:03]} b6 {[%emt 0:
00:00]} 28. Re1 {[%emt 0:01:41]} Rfd6 {[%emt 0:00:43]} 29. g4 {[%emt 0:00:38]}
Bg6 {[%emt 0:00:48]} 30. Kg3 {[%emt 0:05:48]} Bf7 {[%emt 0:00:22]} 31. Rfe2 {
[%emt 0:10:52]} Kg8 {[%emt 0:00:27]} 32. f5 {[%emt 0:02:12][%cal Yf4f5,Yf5f6]}
Rd3 {[%emt 0:00:38]} 33. Re3 {[%emt 0:01:02]} Rd2 {[%emt 0:00:31]} 34. R1e2 {
[%emt 0:00:19]} Kf8 {[%emt 0:00:25]} 35. g5 {[%emt 0:03:16]} hxg5 {[%emt 0:00:
36]} 36. hxg5 {[%emt 0:00:05]} g6 $2 {[%emt 0:00:30]} (36... R8d4 {is a better
chance.} 37. Bc6 Rxe2 38. Rxe2 Rc4) 37. f6 $18 {[%emt 0:01:36]} Rxe2 {[%emt 0:
00:33]} 38. Rxe2 {[%emt 0:00:23] Endgame KRB-KRB} ({Less strong is} 38. Bxe2
Rd2 39. Bf3 Bd5 40. Bxd5 Rxd5 $18) 38... Rc8 {[%emt 0:00:00]} (38... b5 $142
39. Rc2 a4) 39. Be4 {[%emt 0:01:26]} Rc5 {[%emt 0:00:26]} 40. Kf4 {[%emt 0:01:
16]} Rc1 {[%emt 0:00:31]} 41. Rc2 {[%emt 0:34:57]} Rf1+ {[%emt 0:04:56]} 42.
Ke5 {[%emt 0:00:00] [#] Intending Rc8+ and mate.} Re1 {[%emt 0:00:06]} 43. Rc8+
{[%emt 0:00:00]} Be8 {[%emt 0:00:02]} 44. Kf4 {[%emt 0:00:00] White threatens
Bxg6 and mate.} Rf1+ {[%emt 0:00:31]} 45. Kg3 {[%emt 0:00:00]} Rg1+ {[%emt 0:
00:20]} 46. Kh4 {[%emt 0:00:00] Weighted Error Value: White=0.04 (flawless) /
Black=0.56} 1-0

[Event "44th Chess Olympiad Open 2022"]
[Site "Chennai"]
[Date "2022.08.03"]
[Round "6.22"]
[White "Rahman, Ziaur"]
[Black "Andersen, Mads"]
[Result "0-1"]
[WhiteElo "2424"]
[BlackElo "2587"]
[Annotator "TA"]
[PlyCount "98"]
[EventDate "2022.??.??"]
[TimeControl "60"]

{[%evp 9,98,0,0,0,0,0,-6,-4,-8,-7,-2,-2,-8,-31,0,0,0,-14,-14,-7,0,-58,-51,-58,
-58,-63,-72,-77,-72,-73,-40,-85,-58,-116,-114,-112,-113,-118,-114,-141,-141,
-149,-148,-151,-149,-214,-214,-215,-202,-262,-215,-279,-278,-266,-266,-343,
-333,-362,-348,-529,-510,-758,-757,-735,-745,-2271,-2261,-2088,-1997,-1414,
-981,-1254,-614,-844,-800,-766,-745,-753,-733,-1283,-1169,-1000,-1056,-1459,
-1287,-29988,-29989,-29989,-29990,-29990,-29991]} 1. Nf3 {[%emt 0:00:06]} d5 {
[%emt 0:00:09]} 2. e3 {[%emt 0:00:19]} Nf6 {[%emt 0:00:41]} 3. b3 {[%emt 0:00:
00]} Bf5 {[%emt 0:02:19]} 4. Bb2 {[%emt 0:00:18]} e6 {[%emt 0:00:34]} 5. Nh4 {
[%emt 0:00:19]} Bg4 {[%emt 0:04:02]} 6. Be2 {[%emt 0:00:05] A06: Réti Opening:
1 Nf3 d5.} Bxe2 {[%emt 0:00:47]} 7. Qxe2 {[%emt 0:00:08]} c5 {[%emt 0:00:09]}
8. O-O {[%emt 0:00:08] The position is equal.} Nc6 {[%emt 0:00:24]} 9. f4 {
[%emt 0:00:00]} Bd6 {[%emt 0:25:50]} 10. Nf3 {[%emt 0:00:29] [#]} O-O $146 {
[%emt 0:00:37]} ({Predecessor:} 10... Qe7 11. Nc3 a6 12. Nd1 e5 13. fxe5 Nxe5
14. Nf2 O-O 15. Bxe5 Bxe5 16. Nxe5 Qxe5 {0-1 (46) Jensen,S (1909)-Mihajlov,S 
(2059) Reykjavik 2013}) 11. Kh1 {[%emt 0:00:22]} Qe7 {[%emt 0:00:12]} 12. Ne5 {
[%emt 0:00:17]} Rac8 {[%emt 0:22:35]} 13. Nxc6 {[%emt 0:00:06]} Rxc6 {[%emt 0:
00:00]} 14. Nc3 {[%emt 0:00:20]} e5 {[%emt 0:21:11]} 15. Nb5 {[%emt 0:00:00]} (
15. g4 $11) 15... Bb8 $15 {[%emt 0:00:32] Strongly threatening ...exf4.} 16.
fxe5 {[%emt 0:00:00]} Bxe5 {[%emt 0:00:16]} 17. Bxe5 {[%emt 0:00:34]} Qxe5 {
[%emt 0:00:00]} 18. Nc3 {[%emt 0:00:00]} Re8 {[%emt 0:00:05] Threatens to win
with ...d4.} 19. Qf2 {[%emt 0:08:15]} Re7 {[%emt 0:00:31]} 20. Rae1 {[%emt 0:
00:00]} Rce6 {[%emt 0:03:33] Black keeps a firm grip on the game.} 21. Re2 {
[%emt 0:01:40]} (21. h3 $15) 21... Ng4 $1 $40 {[%emt 0:02:17][%csl Gg4,Yf2,Yh2]
[%cal Re5h2] White is in trouble.} 22. Qg3 {[%emt 0:00:22]} Qxg3 {[%emt 0:00:
43]} 23. hxg3 {[%emt 0:00:04]} Nf6 {[%emt 0:09:34]} 24. Rf5 {[%emt 0:00:00]} g6
{[%emt 0:01:41]} 25. Rxd5 {[%emt 0:00:00]} Nxd5 {[%emt 0:00:00]} 26. Nxd5 {
[%emt 0:00:00] Endgame [#] KRR-KRN} Rd7 {[%emt 0:00:00]} 27. c4 {[%emt 0:00:00]
[#]} (27. Nc3 $17) 27... b5 $1 $19 {[%emt 0:00:41]} 28. d3 {[%emt 0:00:26]}
bxc4 {[%emt 0:00:54]} 29. bxc4 {[%emt 0:00:48]} Rb7 {[%emt 0:00:23]} 30. Rd2 {
[%emt 0:01:59]} Rb1+ {[%emt 0:03:17]} 31. Kh2 {[%emt 0:00:03]} f5 {[%emt 0:04:
42][%cal Yf7f5,Yf5g4]} 32. g4 {[%emt 0:00:00]} fxg4 {[%emt 0:00:07]} 33. Kg3 {
[%emt 0:00:30]} h5 {[%emt 0:00:30]} 34. d4 {[%emt 0:00:11]} (34. Re2 $142)
34... Rc1 {[%emt 0:01:51]} 35. Nc7 {[%emt 0:00:00]} Rxe3+ {[%emt 0:00:00]} 36.
Kf4 {[%emt 0:00:06]} Re7 {[%emt 0:01:52]} 37. Na6 {[%emt 0:02:19]} Rf1+ {
[%emt 0:00:00]} 38. Kg5 {[%emt 0:03:18]} Rf5+ {[%emt 0:00:00]} 39. Kh4 {
[%emt 0:00:48]} cxd4 {[%emt 0:00:00]} 40. Nb4 {[%emt 0:00:48]} Rd7 {[%emt 0:01:
44]} 41. Nd3 {[%emt 0:30:06]} Kg7 {[%emt 0:00:00] White must now prevent ...
Re7.} 42. Re2 {[%emt 0:00:30]} Rc7 {[%emt 0:00:00]} 43. c5 {[%emt 0:00:51]} Kh6
{[%emt 0:00:00]} 44. Re6 {[%emt 0:00:00]} Rcxc5 {[%emt 0:00:00]} 45. Nxc5 {
[%emt 0:00:00]} Rxc5 {[%emt 0:00:00]} 46. Rd6 {[%emt 0:00:00]} Rc3 {[%emt 0:04:
00] ( -> ...Re3)} 47. a4 {[%emt 0:00:00]} Re3 {[%emt 0:00:00] Black mates.} 48.
a5 {[%emt 0:00:00]} d3 {[%emt 0:00:00][%cal Yd4d3,Yd3d2]} 49. a6 {[%emt 0:00:
00]} d2 {[%emt 0:00:00] Weighted Error Value: White=0.57/Black=0.28 (precise)}
0-1